bitfinex-derivatives/quotes_ETHF0:USTF0_20260112
["timestamp","ask_amount","ask_price","bid_price","bid_amount"]
[1768183804760,0.00385849,3136.6,3135.2,3.26734638]
[1768183804761,0.00385849,3136.6,3135.6,0.97888625]
[1768183805060,0.00385849,3136.6,3135.4,2.28846013]
[1768183805262,0.00385849,3136.6,3135.3,2.28846013]
[1768183805964,0.4262718,3136.6,3135.3,2.28846013]
[1768183807263,0.4262718,3136.6,3135.2,2.28846013]
[1768183807564,0.15964,3136.5,3135.2,1.15065415]
[1768183807775,0.42241331,3136.0,3134.2,0.42792971]
[1768183808066,0.42241331,3136.0,3134.4,0.42388031]
[1768183808859,3.193,3136.5,3134.4,0.42388031]
[1768183808860,0.42241331,3136.5,3134.4,0.42388031]
[1768183809252,0.42241331,3136.4,3134.4,0.42388031]
[1768183809465,0.42241331,3136.2,3134.4,0.42388031]
[1768183814169,0.41972151,3135.4,3133.1,0.40514099]
[1768183815163,0.41972151,3135.4,3133.1,0.40898717]
[1768183816171,0.41972151,3135.4,3133.2,0.40514099]
[1768183820079,0.41972151,3135.4,3133.3,8.90514099]
[1768183823271,0.41972151,3135.4,3133.4,0.40514099]
[1768183824382,0.41972151,3135.4,3133.5,0.40514099]
[1768183824671,0.41972151,3136.1,3133.6,0.56492099]
[1768183824978,0.41972151,3136.1,3133.7,0.40514099]
[1768183825379,0.41972151,3136.1,3133.8,0.40514099]
[1768183825677,0.41972151,3136.1,3133.9,0.40514099]
[1768183827471,0.41972151,3136.1,3133.4,1.535]
[1768183827472,0.41972151,3136.1,3134.1,0.40514099]
[1768183833285,0.41972151,3136.1,3134.2,0.40514099]
[1768183836387,0.41972151,3136.1,3134.6,0.43510532]
[1768183839595,1.39834655,3136.1,3134.6,0.43510532]
[1768183840695,0.41972151,3136.1,3134.6,0.43510532]
[1768183841796,0.45134127,3135.7,3134.2,0.43510532]
[1768183842690,0.45134127,3135.7,3133.8,2.71889077]
[1768183842895,0.45134127,3135.7,3133.9,0.43510532]
[1768183843593,0.45134127,3136.1,3134.0,0.43510532]
[1768183849298,0.97864929,3135.9,3134.5,1.41375461]
[1768183849899,0.45134127,3135.5,3134.1,0.97864929]
[1768183850095,0.97864929,3135.7,3134.3,0.97864929]
[1768183850404,1.42999056,3135.9,3134.5,0.97864929]
[1768183850592,0.45134127,3135.9,3134.7,0.97864929]
[1768183850789,0.97864929,3136.1,3134.7,0.97864929]
[1768183850998,0.97864929,3135.9,3134.5,0.43510532]
[1768183851201,0.97864929,3135.9,3134.5,1.41375461]
[1768183852597,0.97864929,3136.1,3134.7,0.97864929]
[1768183853097,0.97864929,3135.9,3134.7,0.97864929]
[1768183853299,0.97864929,3135.9,3133.8,0.97864929]
[1768183853300,0.45134127,3134.7,3133.0,2.28378545]
[1768183853491,0.45134127,3134.7,3133.2,0.97864929]
[1768183853798,0.45134127,3134.7,3133.1,0.4389515]
[1768183853997,0.45134127,3134.7,3133.4,0.97864929]
[1768183855094,0.97864929,3134.8,3133.4,0.97864929]
[1768183856906,0.97864929,3134.8,3133.1,0.4389515]
[1768183857103,0.97864929,3134.8,3133.4,0.97864929]
[1768183857803,0.97864929,3134.8,3133.3,0.97864929]
[1768183860500,0.97864929,3134.4,3133.1,0.4389515]
[1768183860702,0.97864929,3134.1,3133.1,0.00384618]
[1768183860999,0.97864929,3133.8,3133.1,0.00384618]
[1768183861205,0.97864929,3134.1,3133.1,0.00384618]
[1768183862905,0.97864929,3134.2,3133.1,0.00384618]
[1768183863306,0.45395059,3134.4,3133.1,0.00384618]
[1768183863603,0.00260932,3134.4,3133.1,0.00384618]
[1768183863909,0.00260932,3134.4,3133.4,0.97864929]
[1768183864105,0.00260932,3134.4,3133.2,0.97864929]
[1768183865307,0.00260932,3134.4,3133.1,0.4389515]
[1768183865703,0.42671989,3134.4,3133.1,0.00384618]
[1768183867709,0.00260932,3134.4,3133.1,0.43030317]
[1768183869805,0.00260932,3134.4,3133.1,0.00384618]
[1768183873729,0.00260932,3134.4,3133.1,0.41682642]
[1768183881124,0.00260932,3134.4,3133.1,0.00384618]
[1768183883531,0.43489262,3134.4,3133.1,0.00384618]
[1768183887437,0.97986437,3133.9,3133.1,0.00384618]
[1768183888034,0.97986437,3133.5,3133.1,0.00384618]
[1768183888336,0.4322833,3134.1,3133.1,0.00384618]
[1768183888337,0.97986437,3133.7,3133.1,0.00384618]
[1768183888535,0.97986437,3133.9,3133.1,0.00384618]
[1768183888832,0.4322833,3134.1,3133.1,0.00384618]
[1768183889137,0.97986437,3134.0,3133.1,0.00384618]
[1768183892237,0.15975,3134.2,3133.1,0.00384618]
[1768183892440,0.97986437,3134.0,3133.1,0.00384618]
[1768183896242,0.97986437,3133.8,3133.1,0.00384618]
[1768183896739,0.97986437,3133.6,3133.1,0.00384618]
[1768183897843,0.97986437,3134.0,3133.1,0.00384618]
[1768183898140,0.97986437,3133.8,3133.1,0.00384618]
[1768183908839,0.97986437,3133.6,3133.1,0.00384618]
[1768183909040,0.97986437,3133.4,3132.4,2.28378545]
[1768183909448,0.4274658,3133.9,3132.4,2.28378545]
[1768183910141,0.4274658,3133.9,3132.4,2.28729405]
[1768183910451,0.4274658,3133.9,3132.4,2.71670293]
[1768183910835,0.4274658,3133.9,3132.4,0.43291748]
[1768183911043,0.98004943,3133.2,3132.0,5.15326944]
[1768183911348,0.98004943,3133.2,3132.0,2.28378545]
[1768183911550,0.98004943,3133.2,3131.9,13.98378545]
[1768183912148,0.98004943,3133.2,3131.9,13.98715971]
[1768183914354,1.40751523,3133.2,3131.9,0.00337426]
[1768183915645,0.4274658,3133.1,3131.9,0.00337426]
[1768183917554,0.98004943,3133.2,3131.9,0.00337426]
[1768183917555,0.4274658,3133.5,3131.9,0.00337426]
[1768183917854,1.40751523,3133.5,3131.9,0.43278314]
[1768183918253,0.4274658,3133.4,3131.9,0.43278314]
[1768183918650,0.4274658,3133.4,3131.9,0.00337426]
[1768183919151,1.40751523,3133.1,3131.9,0.00337426]
[1768183919658,0.4274658,3133.0,3131.9,0.00337426]
[1768183925749,1.40449561,3133.4,3131.9,0.00337426]
[1768183926152,0.42444618,3133.3,3131.9,0.00337426]
[1768183928156,1.40449561,3133.0,3131.9,0.00337426]
[1768183929355,0.42444618,3133.0,3131.9,0.00337426]
[1768183929555,6.26759949,3135.2,3131.9,0.00337426]
[1768183929556,0.41629697,3133.9,3132.2,1.41793884]
[1768183929766,0.41629697,3133.9,3132.3,0.43788941]
[1768183930265,0.67654233,3134.3,3132.4,0.43788941]
[1768183930660,0.41629697,3134.3,3132.4,0.43788941]
[1768183931655,0.41629697,3134.3,3132.7,0.43788941]
[1768183932352,0.00260932,3134.4,3132.7,0.43788941]
[1768183936667,0.41890629,3134.4,3132.7,0.43788941]
[1768183938669,0.00260932,3134.4,3132.7,0.43788941]
[1768183941368,0.00260932,3134.4,3132.9,0.43788941]
[1768183942080,0.00260932,3134.4,3133.3,0.43788941]
[1768183962000,6.55166,3136.0,3134.1,0.42708449]
[1768183962197,6.55166,3136.0,3134.5,0.42708449]
[1768183962198,0.59786646,3136.0,3134.5,0.42708449]
[1768183962403,0.43820646,3136.0,3134.5,0.42708449]
[1768183963197,0.44134063,3136.0,3134.5,0.43084774]
[1768183963898,1.42139006,3136.0,3134.5,0.43084774]
[1768183964101,0.44134063,3136.0,3134.5,0.43084774]
[1768183966708,0.00313417,3136.0,3134.5,0.43084774]
[1768183969508,0.00313417,3136.0,3134.8,0.97835128]
[1768183970009,0.00313417,3136.0,3134.8,1.40543577]
[1768183970206,0.00313417,3136.0,3134.9,0.42708449]
[1768183971006,0.00313417,3136.0,3135.2,1.40543577]
[1768183971206,0.97835128,3136.5,3135.2,1.40543577]
[1768183971508,0.97835128,3136.5,3135.3,0.42708449]
[1768183971704,0.97835128,3136.3,3135.3,0.42708449]
[1768183972310,0.98086575,3136.3,3135.3,0.42708449]
[1768183972609,0.98086575,3136.3,3135.0,0.97835128]
[1768183973202,0.98086575,3136.3,3135.0,1.40543577]
[1768183975715,0.97835128,3136.1,3135.0,0.42708449]
[1768183976215,0.97835128,3136.2,3135.0,0.42708449]
[1768183980112,0.00251447,3136.3,3135.0,0.42708449]
[1768183980417,0.98086575,3136.3,3135.1,0.42708449]
[1768183981507,0.00251447,3136.3,3135.4,0.97835128]
[1768183981815,0.43820646,3137.0,3135.8,0.97835128]
[1768183982014,0.97835128,3136.9,3135.6,0.97835128]
[1768183982712,0.97835128,3136.7,3135.4,0.42708449]
[1768183982907,0.98103586,3136.7,3135.4,0.42708449]
[1768183984112,0.00268458,3136.7,3135.5,0.45446136]
[1768183987711,0.97835128,3136.6,3135.5,0.45446136]
[1768183988923,0.97835128,3136.4,3135.5,0.45446136]
[1768183989923,0.98103586,3136.7,3135.5,0.45446136]
[1768183990120,0.98103586,3136.7,3135.1,0.1597]
[1768183990316,0.97835128,3136.5,3135.2,1.40221212]
[1768183991923,0.97835128,3136.5,3135.2,0.42386084]
[1768183992525,0.00268458,3136.7,3135.3,1.40221212]
[1768183992526,0.98103586,3136.7,3135.3,1.40221212]
[1768183993324,0.98103586,3136.7,3135.5,0.97835128]
[1768183993826,0.00268458,3136.7,3135.5,0.97835128]
[1768183994525,0.44864155,3137.4,3136.1,0.97835128]
[1768183994731,0.97835128,3137.3,3136.1,0.97835128]
[1768183995022,0.97835128,3137.3,3135.9,1.40221212]
[1768183995627,0.98077965,3137.3,3135.9,1.40221212]
[1768183995823,0.00242837,3137.3,3136.3,0.97835128]
[1768183996033,0.00242837,3137.3,3136.1,1.40221212]
[1768183997326,0.00242837,3137.3,3136.2,1.40221212]
[1768183997529,0.98077965,3137.3,3136.2,0.42386084]
[1768184000832,0.97835128,3137.1,3136.2,0.42386084]
[1768184001134,0.97835128,3136.9,3135.6,1.56189212]
[1768184001937,0.44864155,3137.1,3135.6,1.56189212]
[1768184002133,0.97835128,3137.0,3135.6,1.56189212]
[1768184002332,0.97835128,3136.8,3135.6,0.58354084]
[1768184004236,0.44864155,3137.1,3135.6,0.58354084]
[1768184004438,0.97835128,3136.9,3135.6,0.58354084]
[1768184006532,0.97835128,3136.9,3135.7,0.97835128]
[1768184006727,0.98077965,3137.3,3135.9,0.97835128]
[1768184007044,0.00242837,3137.3,3136.1,0.97835128]
[1768184007638,0.00242837,3137.3,3136.5,0.97835128]
[1768184007830,1.42699283,3137.9,3136.5,0.97835128]
[1768184008038,0.97835128,3137.7,3136.5,0.97835128]
[1768184008429,0.44864155,3137.9,3136.5,0.97835128]
[1768184008430,1.42699283,3137.9,3136.5,0.97835128]
[1768184008840,1.43011782,3137.9,3136.5,0.97835128]
[1768184009036,0.97835128,3137.7,3136.5,0.97835128]
[1768184009633,0.45176654,3137.9,3136.5,0.97835128]
[1768184009828,0.00312499,3137.9,3136.6,0.42386084]
[1768184010036,0.97835128,3137.8,3136.6,0.42386084]
[1768184010940,0.00312499,3137.9,3136.6,0.42386084]
[1768184011140,0.97835128,3137.7,3136.6,0.42386084]
[1768184013044,0.98147627,3137.9,3136.6,0.42386084]
[1768184013246,0.00312499,3137.9,3137.0,0.42386084]
[1768184013439,0.00312499,3137.9,3137.0,0.42723162]
[1768184014347,0.00312499,3137.9,3137.0,0.00337078]
[1768184019752,0.97835128,3137.8,3137.0,0.00337078]
[1768184020059,0.00312499,3137.9,3137.0,0.00337078]
[1768184021947,0.00312499,3137.9,3137.0,0.43813917]
[1768184022147,0.00312499,3137.9,3137.2,0.43476839]
[1768184022348,0.97835128,3138.4,3137.2,0.43476839]
[1768184022851,0.97835128,3138.6,3137.3,0.97835128]
[1768184023153,0.97835128,3138.4,3137.4,1.561]
[1768184023353,0.97835128,3138.2,3137.4,1.561]
[1768184023954,0.0554789,3139.4,3137.6,0.43476839]
[1768184024147,0.97835128,3139.2,3137.7,0.97835128]
[1768184024351,0.97835128,3139.2,3137.8,0.43476839]
[1768184024548,0.97835128,3139.0,3137.5,0.43476839]
[1768184024748,0.26066062,3140.0,3137.5,0.43476839]
[1768184024749,0.97835128,3138.8,3137.5,0.43476839]
[1768184024948,0.98133853,3138.8,3137.5,1.41311967]
[1768184025151,0.98133853,3138.8,3137.5,0.43476839]
[1768184025654,0.00298725,3138.8,3137.6,1.561]
[1768184026754,0.97835128,3138.5,3137.5,1.56]
[1768184027657,0.00298725,3138.8,3137.5,2.53835128]
[1768184028161,0.97835128,3138.7,3137.5,1.56]
[1768184029659,1.40245099,3138.7,3137.5,1.56]
[1768184030157,1.40245099,3138.7,3137.2,0.43476839]
[1768184030158,0.97835128,3138.0,3137.0,0.00337078]
[1768184030354,0.97835128,3138.2,3137.3,1.561]
[1768184030560,1.40245099,3138.4,3137.1,1.561]
[1768184031359,0.42409971,3138.4,3137.1,1.561]
[1768184031658,0.00298725,3138.8,3137.2,0.43476839]
[1768184033655,0.42708696,3138.8,3137.2,0.43476839]
[1768184034259,0.42708696,3138.8,3137.3,1.562]
[1768184036964,0.42708696,3138.8,3137.3,1.99676839]
[1768184039369,0.00298725,3138.8,3137.4,0.43476839]
[1768184040971,0.42708696,3138.8,3137.3,1.562]
[1768184041670,0.42708696,3138.8,3137.3,1.99676839]
[1768184043370,0.00298725,3138.8,3137.6,0.43476839]
[1768184044360,1.40761551,3139.7,3137.9,0.40677212]
[1768184044567,0.43057259,3139.7,3138.1,0.40677212]
[1768184045067,1.25057471,3140.1,3138.7,0.40677212]
[1768184045262,2.85549253,3140.8,3139.4,0.97704292]
[1768184045465,3.99867097,3141.4,3139.6,0.40677212]
[1768184045669,0.43057259,3141.8,3139.9,0.40677212]
[1768184045870,0.97704292,3141.6,3139.9,0.40677212]
[1768184046075,0.43057259,3141.5,3139.9,0.40677212]
[1768184046268,1.40761551,3141.5,3139.9,1.97377212]
[1768184046464,0.43339932,3141.5,3139.9,1.97691654]
[1768184046863,0.00282673,3141.5,3140.0,0.40677212]
[1768184047077,0.43057259,3141.3,3139.9,0.00314442]
[1768184047368,0.43057259,3141.0,3139.9,0.00314442]
[1768184048168,6.43057259,3141.0,3139.9,0.00314442]
[1768184048369,0.43057259,3140.9,3139.9,0.00314442]
[1768184048568,0.58996259,3141.3,3139.9,0.00314442]
[1768184048875,0.43057259,3141.2,3139.9,0.00314442]
[1768184049574,0.43057259,3141.1,3139.2,1.567]
[1768184050263,0.43057259,3141.1,3139.2,2.01671342]
[1768184050467,0.43057259,3141.1,3139.3,0.44971342]
[1768184050771,0.00282673,3141.5,3139.3,0.44971342]
[1768184051370,0.00282673,3141.5,3139.7,0.44971342]
[1768184051571,0.00282673,3141.5,3139.8,0.44971342]
[1768184051876,0.00282673,3141.5,3140.0,0.44971342]
[1768184052075,0.41782075,3141.5,3139.7,1.566]
[1768184052370,0.41782075,3141.5,3139.8,1.566]
[1768184052963,0.41782075,3141.5,3139.6,0.44971342]
[1768184054276,0.41782075,3141.5,3139.6,2.01571342]
[1768184054673,0.41499402,3141.2,3139.2,0.45307529]
[1768184054878,0.41499402,3141.2,3139.2,2.01907529]
[1768184055378,0.41499402,3141.2,3139.2,0.45307529]
[1768184055978,0.41499402,3140.9,3139.2,0.00336187]
[1768184056375,0.41499402,3140.7,3139.2,0.00336187]
[1768184056776,0.57439402,3140.7,3139.2,0.00336187]
[1768184056981,0.41499402,3140.6,3139.2,0.00336187]
[1768184057182,0.41499402,3140.4,3139.2,0.00336187]
[1768184058274,0.41499402,3140.9,3139.2,0.00336187]
[1768184061203,0.57438402,3140.9,3139.2,0.00336187]
[1768184061403,0.41499402,3140.8,3139.2,0.00336187]
[1768184063303,0.41499402,3141.3,3139.2,0.45307529]
[1768184064001,0.00282673,3141.5,3139.4,0.44971342]
[1768184064189,0.00282673,3141.5,3139.6,0.44971342]
[1768184064597,0.41782075,3141.5,3139.7,11.7]
[1768184064998,0.41782075,3141.5,3139.8,0.44971342]
[1768184065200,0.00282673,3141.5,3139.8,0.44971342]
[1768184070501,0.00282673,3141.5,3140.0,0.44971342]
[1768184074914,2.85549253,3142.5,3140.2,0.41088267]
[1768184075213,0.1593,3142.7,3140.4,0.41088267]
[1768184075411,0.44409499,3142.8,3141.0,0.41088267]
[1768184075613,0.44409499,3143.0,3141.2,0.41088267]
[1768184075814,0.44714346,3143.0,3141.2,0.41088267]
[1768184076408,0.44714346,3143.0,3141.1,1.57]
[1768184076409,0.44409499,3142.9,3141.1,1.57]
[1768184077616,0.44409499,3142.9,3141.2,0.41088267]
[1768184078716,0.44409499,3142.7,3140.7,0.41088267]
[1768184080125,0.44409499,3142.7,3140.8,1.98088267]
[1768184080621,0.44409499,3142.7,3140.9,0.41088267]
[1768184083021,0.44409499,3142.7,3139.9,2.28378545]
[1768184083022,0.15933,3142.3,3139.9,2.44322545]
[1768184083319,0.44409499,3142.9,3140.6,0.41088267]
[1768184083623,0.44409499,3142.9,3140.8,0.41088267]
[1768184083820,0.00304847,3143.0,3141.0,0.41088267]
[1768184084121,0.00304847,3143.0,3140.9,4.548]
[1768184084122,0.00304847,3143.0,3141.2,0.41088267]
[1768184084920,0.44714346,3143.0,3141.2,0.41088267]
[1768184085119,0.00304847,3143.0,3141.4,0.41088267]
[1768184085327,0.00304847,3143.0,3141.8,0.41088267]
[1768184085515,0.00304847,3143.0,3141.9,1.571]
[1768184086317,0.00304847,3143.0,3141.9,1.98188267]
[1768184086521,0.05539218,3144.3,3142.0,0.41088267]
[1768184086711,1.23503206,3145.3,3142.6,0.41088267]
[1768184086916,0.44409499,3145.0,3142.8,0.41088267]
[1768184087313,0.44409499,3144.5,3142.0,0.41088267]
[1768184087512,0.00238359,3144.5,3142.5,0.41088267]
[1768184087721,0.00238359,3144.5,3142.6,0.41088267]
[1768184089026,0.00238359,3144.5,3142.8,0.41088267]
[1768184089424,0.00238359,3144.5,3142.7,11.7]
[1768184089425,0.00238359,3144.5,3143.0,0.41088267]
[1768184089723,0.44647858,3144.5,3142.7,11.7]
[1768184089923,0.44647858,3144.5,3142.7,1.57]
[1768184090325,0.44647858,3144.5,3142.7,0.41088267]
[1768184091322,0.44409499,3144.4,3142.2,0.41088267]
[1768184091527,0.44409499,3144.4,3142.3,1.571]
[1768184091923,0.44409499,3144.4,3142.2,13.36088267]
[1768184092123,0.44409499,3144.3,3142.2,1.66088267]
[1768184092328,0.44409499,3144.3,3142.3,0.41088267]
[1768184093134,0.44409499,3144.2,3142.2,1.25]
[1768184094227,0.44409499,3144.2,3142.1,1.571]
[1768184094625,0.44409499,3144.1,3141.9,11.7]
[1768184095121,0.44409499,3144.1,3142.0,0.41088267]
[1768184095322,0.00238359,3144.5,3142.4,0.41088267]
[1768184095628,0.44647858,3144.5,3142.4,0.41088267]
[1768184097436,0.00238359,3144.5,3142.4,0.41088267]
[1768184097621,0.00238359,3144.5,3143.1,0.41088267]
[1768184097821,0.00238359,3144.5,3143.3,0.41088267]
[1768184098831,0.00238359,3144.5,3143.2,1.571]
[1768184099020,0.44409499,3145.0,3143.2,1.571]
[1768184099021,1.23503206,3145.3,3143.3,6.41088267]
[1768184099223,1.67912705,3145.3,3143.3,0.41088267]
[1768184099637,1.67912705,3145.3,3143.4,0.41088267]
[1768184099930,1.23503206,3145.3,3143.4,0.41088267]
[1768184100228,1.23867698,3145.3,3143.4,0.41088267]
[1768184101019,1.23867698,3145.3,3143.9,0.41088267]
[1768184101220,0.43766866,3145.3,3144.1,1.55814207]
[1768184101423,0.43766866,3145.3,3143.9,0.00229654]
[1768184101622,0.88176365,3145.3,3144.0,1.571]
[1768184102033,0.15905,3147.7,3145.1,1.55814207]
[1768184102232,0.44409499,3147.6,3145.5,0.15915]
[1768184102438,3.186,3149.7,3145.2,3.12914207]
[1768184102439,0.15894,3149.9,3146.5,0.15911]
[1768184102730,0.15894,3149.9,3145.2,5.07466448]
[1768184102731,0.44409499,3150.1,3145.9,0.15914]
[1768184102926,0.44409499,3149.5,3146.9,1.55814207]
[1768184103123,0.44409499,3149.2,3146.5,0.694]
[1768184103327,0.44409499,3149.1,3146.6,0.41314652]
[1768184103527,0.44409499,3149.1,3147.1,1.55814207]
[1768184103735,0.44409499,3149.1,3147.2,0.41314652]
[1768184103930,0.44409499,3149.1,3147.6,1.55814207]
[1768184104123,0.42382159,3149.9,3147.7,4.60614652]
[1768184104328,0.42382159,3149.9,3147.8,1.98314652]
[1768184104527,0.42382159,3149.4,3147.9,0.41314652]
[1768184104832,0.42382159,3149.8,3148.0,1.97128859]
[1768184105131,0.0028143,3150.1,3148.1,0.41314652]
[1768184105334,1.00900582,3150.4,3149.2,0.15897]
[1768184105533,0.77041529,3150.4,3149.5,1.55814207]
[1768184105733,0.42382159,3151.8,3150.0,1.55814207]
[1768184105935,0.42382159,3152.6,3150.1,6.41314652]
[1768184106142,0.42382159,3152.6,3150.5,1.55814207]
[1768184106340,0.00293529,3152.6,3150.6,0.41314652]
[1768184106640,0.42675688,3152.6,3150.5,0.00358193]
[1768184106840,0.42382159,3151.9,3148.9,3.184]
[1768184107028,0.42382159,3151.5,3149.0,0.40448081]
[1768184107232,1.55814207,3150.5,3148.1,1.569]
[1768184107431,1.55814207,3149.5,3147.1,0.24967551]
[1768184107627,4.74114207,3149.5,3147.2,0.40468635]
[1768184107826,0.00277311,3149.5,3147.3,12.10467313]
[1768184108026,1.55814207,3149.4,3147.2,0.00307003]
[1768184108233,0.159,3148.6,3144.0,3.183]
[1768184108433,0.649,3149.3,3145.6,1.55814207]
[1768184108632,0.15897,3149.4,3145.7,12.10492782]
[1768184108834,1.55814207,3148.6,3145.8,0.40492782]
[1768184109042,1.71712207,3149.0,3145.9,0.40492782]
[1768184109238,0.42382159,3148.4,3146.0,0.40492782]
[1768184109438,0.42382159,3148.4,3146.1,0.40492782]
[1768184109643,0.42382159,3148.4,3146.2,0.40492782]
[1768184109943,0.42382159,3146.9,3145.7,0.00251754]
[1768184110138,0.42605467,3146.9,3145.7,0.00251754]
[1768184110341,0.41553633,3146.7,3143.7,0.937]
[1768184110644,0.41553633,3146.4,3143.8,0.40562151]
[1768184110838,0.41553633,3145.2,3142.4,3.182]
[1768184111037,0.41553633,3145.2,3143.7,1.55814207]
[1768184111242,0.41553633,3145.2,3143.8,0.40592647]
[1768184111432,0.00223308,3146.9,3143.8,0.40592647]
[1768184111433,0.41553633,3145.9,3144.0,2.00943609]
[1768184111736,0.00223308,3146.9,3144.0,2.00943609]
[1768184111737,0.41553633,3146.5,3144.1,0.40592647]
[1768184111943,0.41553633,3146.5,3144.7,2.00943609]
[1768184112143,0.00223308,3146.9,3144.9,2.00943609]
[1768184112338,0.00223308,3146.9,3145.0,3.58892647]
[1768184112533,0.00223308,3146.9,3145.1,1.97392647]
[1768184112735,0.41553633,3147.9,3145.2,2.41536256]
[1768184112942,0.41553633,3147.9,3145.1,1.568]
[1768184112943,0.41553633,3147.9,3145.3,0.40592647]
[1768184113137,0.41553633,3147.9,3145.4,0.40592647]
[1768184113339,0.41553633,3147.9,3145.5,0.40592647]
[1768184113539,0.41553633,3147.9,3145.6,0.40592647]
[1768184113740,0.4190753,3147.9,3145.7,0.40592647]
[1768184113939,0.4190753,3147.9,3145.8,0.40592647]
[1768184114137,0.4190753,3147.9,3145.9,0.40592647]
[1768184114446,0.4190753,3147.9,3146.0,0.40592647]
[1768184114646,0.4190753,3147.9,3146.1,0.40592647]
[1768184114942,0.4190753,3147.9,3146.2,0.40592647]
[1768184115144,0.4190753,3147.9,3146.3,0.40592647]
[1768184115445,0.4190753,3147.9,3146.4,0.40592647]
[1768184115639,0.4190753,3147.9,3146.5,0.40592647]
[1768184115841,0.4190753,3147.9,3146.6,0.40592647]
[1768184116046,0.4190753,3147.9,3146.1,0.00382098]
[1768184116234,0.41553633,3147.8,3146.2,0.40573281]
[1768184116439,0.41553633,3147.8,3146.3,0.40573281]
[1768184116742,0.41553633,3147.6,3146.1,0.00382098]
[1768184116946,0.41553633,3147.6,3144.2,3.182]
[1768184117140,0.41553633,3147.4,3144.9,0.43362292]
[1768184117943,0.41553633,3147.4,3144.9,0.43672033]
[1768184118241,0.00353897,3147.9,3146.2,0.43362292]
[1768184118437,0.25933114,3150.1,3144.9,6.00309741]
[1768184118438,0.41553633,3149.6,3146.7,2.00943609]
[1768184118638,0.41553633,3149.6,3146.8,16.449]
[1768184118841,0.41553633,3149.6,3147.3,2.16850609]
[1768184119341,0.41925442,3149.6,3147.4,0.15906]
[1768184119541,0.00371809,3149.6,3147.5,0.59268292]
[1768184119751,0.00371809,3149.6,3148.0,0.43362292]
[1768184119948,0.15886,3151.4,3148.5,2.00943609]
[1768184119949,0.41553633,3151.0,3148.5,2.00943609]
[1768184120136,0.41553633,3151.7,3149.1,2.00943609]
[1768184120334,0.41553633,3151.7,3148.6,0.43362292]
[1768184120335,0.41553633,3151.7,3148.9,4.748]
[1768184120946,0.41956164,3151.7,3148.9,4.90699]
[1768184121353,0.41956164,3151.7,3149.4,2.00943609]
[1768184121651,0.41956164,3151.7,3149.5,0.15896]
[1768184122238,0.41956164,3151.7,3149.1,0.43362292]
[1768184122433,0.41956164,3151.7,3149.0,3.612]
[1768184122641,0.41956164,3151.7,3149.1,3.181]
[1768184123033,0.41956164,3151.7,3149.2,0.15897]
[1768184123239,0.41956164,3151.7,3149.3,1.01]
[1768184123542,0.41956164,3151.7,3149.2,0.15897]
[1768184123847,0.41956164,3151.7,3149.3,3.181]
[1768184124054,0.41956164,3151.7,3149.4,11.7]
[1768184124747,0.41956164,3151.7,3149.4,11.85896]
[1768184125045,0.41956164,3151.7,3149.4,11.7]
[1768184125241,2.85549253,3154.2,3149.4,11.7]
[1768184125242,0.41553633,3152.4,3149.8,2.44305901]
[1768184125445,0.41553633,3153.1,3149.9,0.43362292]
[1768184125845,0.41553633,3153.1,3150.0,4.745]
[1768184126041,0.41553633,3153.0,3149.9,0.59255292]
[1768184126238,0.15878,3153.1,3149.9,0.00384176]
[1768184126239,0.41553633,3152.1,3149.9,0.00384176]
[1768184126446,0.15885,3151.7,3149.9,0.00384176]
[1768184126641,0.41553633,3151.6,3149.9,0.00384176]
[1768184126842,6.57438633,3151.6,3149.9,0.00384176]
[1768184127139,6.57438633,3151.6,3149.0,1.0]
[1768184127140,0.41553633,3150.8,3149.0,1.0]
[1768184127342,11.18943609,3151.6,3149.0,1.0]
[1768184127343,0.41553633,3150.4,3149.0,1.0]
[1768184127650,0.15892,3150.2,3148.0,3.61362292]
[1768184127846,0.41553633,3150.8,3148.0,3.61362292]
[1768184127847,0.41553633,3150.8,3148.1,11.7]
[1768184128051,0.0033247,3150.8,3148.2,0.43362292]
[1768184128353,0.0033247,3150.8,3148.4,0.43362292]
[1768184128544,0.0033247,3150.8,3148.4,0.59263292]
[1768184128856,0.0033247,3150.8,3148.6,0.43362292]
[1768184129038,0.0033247,3150.8,3148.7,0.8369643]
[1768184129242,0.0033247,3150.8,3148.9,0.43362292]
[1768184129452,0.0033247,3150.8,3149.3,0.43362292]
[1768184129650,0.0033247,3150.8,3149.5,0.43362292]
[1768184129847,0.0033247,3150.8,3149.7,0.43362292]
[1768184130047,0.0033247,3150.8,3149.8,0.40334138]
[1768184130245,0.0033247,3150.8,3149.9,0.40334138]
[1768184130545,0.0033247,3150.8,3150.0,0.40334138]
[1768184130750,0.0033247,3150.8,3150.1,0.40334138]
[1768184130949,0.21398218,3153.6,3150.5,0.43362292]
[1768184131157,0.15875,3153.6,3150.7,0.43362292]
[1768184131342,0.15875,3153.6,3150.9,0.43362292]
[1768184131545,0.15875,3153.6,3151.1,0.43362292]
[1768184131745,0.15875,3153.6,3150.8,0.192]
[1768184131746,0.41553633,3154.2,3151.3,0.43362292]
[1768184131948,22.258,3155.9,3151.3,0.43362292]
[1768184131949,1.20413403,3155.6,3152.9,2.00943609]
[1768184132157,1.20413403,3155.6,3151.4,0.40334138]
[1768184132158,1.20413403,3155.6,3153.3,0.43362292]
[1768184132451,1.20413403,3155.6,3153.5,0.43362292]
[1768184132650,1.20413403,3155.6,3153.8,0.43362292]
[1768184132957,0.41553633,3157.7,3154.4,0.43362292]
[1768184133254,0.41553633,3156.8,3154.5,0.40334138]
[1768184133454,0.41553633,3156.7,3153.9,0.43362292]
[1768184133650,0.1586,3156.6,3154.0,0.83411947]
[1768184133960,0.41553633,3156.4,3154.1,0.40049655]
[1768184134154,0.42670768,3156.0,3153.8,0.00286748]
[1768184134348,0.42670768,3156.0,3152.5,0.4581081]
[1768184134349,0.42670768,3155.5,3152.5,0.4581081]
[1768184134549,0.42670768,3155.5,3152.6,0.40012504]
[1768184134748,3.178,3155.4,3152.7,0.40012504]
[1768184134955,3.60470768,3155.4,3152.8,0.85823314]
[1768184135150,0.42670768,3155.2,3152.9,0.40012504]
[1768184135348,0.42670768,3155.2,3153.0,0.40012504]
[1768184135548,6.42670768,3155.2,3152.9,0.00357865]
[1768184135749,0.42670768,3155.1,3153.0,0.39961075]
[1768184136049,2.00943609,3155.3,3153.1,0.39961075]
[1768184136245,0.15869,3154.9,3153.2,0.16060407]
[1768184136553,0.42670768,3154.7,3152.9,0.00357865]
[1768184136761,0.42670768,3154.4,3151.4,0.4581081]
[1768184136958,0.42670768,3154.2,3151.4,0.4581081]
[1768184137160,0.15873,3154.1,3151.4,0.4581081]
[1768184137459,0.42670768,3153.4,3150.6,0.4581081]
[1768184137658,0.42670768,3153.1,3150.6,0.46198047]
[1768184137955,0.58550768,3152.6,3150.6,0.00387237]
[1768184138252,0.15875,3153.7,3150.6,0.46198047]
[1768184138656,0.41831951,3153.7,3150.6,0.46198047]
[1768184138855,0.25956951,3153.7,3150.6,0.46198047]
[1768184139059,0.4306375,3153.4,3150.6,0.46198047]